Cogmind - Beta 9.1 @@@ ROGUE MODE // 2019.11.03 @ 04:01:48 Player: MrPainting Result: Self-destructed Performance ------------- Evolutions (1) 500 Regions Visited (2) 400 Robots Destroyed (6) 30 Value Destroyed (153) 153 Prototype IDs (0) 0 Alien Tech Used (0) 0 Bonus (0) 0 TOTAL SCORE: 1083 Bonus ------- None Cogmind --------- Core Integrity 344/400 Matter 163/300 Energy 95/100 System Corruption 0% Temperature Cool (0) Location -9/Materials Parts ------- Power (1) Propulsion (2) Aluminum Leg Aluminum Leg Utility (4) Visual Processing Unit Improved Signal Interpreter ECM Suite Weapon (2) Assault Rifle Grenade Launcher Inventory (4) Hover Unit Hover Unit Peak State ------------ Power Light Nuclear Core Propulsion Aluminum Leg Aluminum Leg Utility Visual Processing Unit Improved Signal Interpreter ECM Suite Weapon Assault Rifle Grenade Launcher Inventory Hover Unit Hover Unit [Rating: 12] Favorites ----------- Power Light Ion Engine Engine Light Ion Engine Power Core Light Nuclear Core Propulsion Aluminum Leg Leg Aluminum Leg Utility Light Armor Plating Device Tractor Beam Processor Improved Signal Interpreter Protection Light Armor Plating Weapon Assault Rifle Energy Gun EM Pulse Gun Ballistic Gun Assault Rifle Launcher Grenade Launcher Build | -11 -10 -9 ------- Run | Scr Mat Mat Slots Evolved 2 | . . 2 Power . | . . . Propulsion . | . . . Utility 2 | . . 2 Weapon . | . . . Parts Attached 13 | 1 9 3 Power 2 | 1 1 . Engine 1 | 1 . . Core 1 | . 1 . Reactor . | . . . Propulsion 2 | . 2 . Treads . | . . . Leg 2 | . 2 . Wheel . | . . . Hover . | . . . Flight . | . . . Utility 5 | . 3 2 Device 2 | . 2 . Storage . | . . . Processor 2 | . . 2 Hackware . | . . . Protection 1 | . 1 . Artifact . | . . . Weapon 4 | . 3 1 Energy Gun 1 | . 1 . Energy Cannon . | . . . Ballistic Gun 1 | . 1 . Ballistic Cannon . | . . . Launcher 2 | . 1 1 Special Weapon . | . . . Impact Weapon . | . . . Slashing Weapon . | . . . Piercing Weapon . | . . . Special Melee Weapon . | . . . Unidentified Prototypes . | . . . Parts Lost 5 | . 4 1 Power 2 | . 1 1 Propulsion . | . . . Utility 2 | . 2 . Weapon 1 | . 1 . Highest Loss Streak 4 | . 4 1 Average Slot Usage (%) 83 | . 86 75 Engine 9 | . 12 . Core 2 | . . 10 Leg 25 | . 27 22 Device 9 | . 9 11 Processor 3 | . . 15 Protection 6 | . 9 . Energy Gun 9 | . 13 . Ballistic Gun 10 | . 10 11 Launcher 3 | . 3 6 Naked Turns . | . . . Heaviest Build 11 | 3 11 11 Greatest Support 20 | 3 20 20 Greatest Overweight (x) . | . . . Average Overweight (x) . | . . . Largest Inventory Capacity 4 | 4 4 4 Average Capacity 4 | 4 4 4 Most Carried 4 | 4 4 4 Average Carried 2 | 2 1 2 Final Capacity 4 | 4 4 4 Final Carried 4 | 4 4 2 Class Distribution -------------------- 100% | Mutant Dominant Class ---------------- Mutant | -10/Materials Mutant | -9/Materials Resources | -11 -10 -9 ----------- Run | Scr Mat Mat Matter Collected 306 | 210 96 . Remotely 96 | . 96 . Salvage Created 211 | . 149 62 Parts 16 | . 12 4 Haulers Intercepted . | . . . Recyclers Shooed 1 | . 1 . Parts Field Recycled . | . . . Retrieved Matter . | . . . Parts Self-Destructed . | . . . Prevented . | . . . Kills | -11 -10 -9 ------- Run | Scr Mat Mat Combat Hostiles Destroyed 3 | . 1 2 Guns 3 | . 1 2 Classes Destroyed 3 | . 3 . Recycler 1 | . 1 . Watcher 2 | . 2 . Grunt 3 | . 1 2 Best Kill Streak 2 | . 2 2 Combat Bots Only 2 | . 1 2 Max Kills in Single Turn 1 | . 1 1 Gunslinging . | . . . Exploded . | . . . Melee . | . . . Uniques/NPCs Destroyed . | . . . Combat | -11 -10 -9 -------- Run | Scr Mat Mat Damage Taken 658 | . 447 211 Core 118 | . 62 56 Absorbed by Shields . | . . . Core Remaining (%) 87 | 100 75 . Volleys Fired 46 | . 26 20 Largest 2 | . 2 1 Hottest 60 | . 60 20 Shots Fired 72 | . 52 20 Gun 72 | . 52 20 Cannon . | . . . Launcher . | . . . Special . | . . . Kinetic 46 | . 26 20 Thermal . | . . . Explosive . | . . . Electromagnetic 26 | . 26 . Robot Hit Streak 7 | . 5 7 Robot Miss Streak 5 | . 5 5 Penetration Max . | . . . Secondary Targets 2 | . 2 . Max Gunslinging Chain 1 | . 1 . Shots Hit Robots 41 | . 27 14 Core Hits 13 | . 8 5 Critical Hits 1 | . . 1 Critical Kills 1 | . . 1 Critical Parts Destroyed . | . . . Melee Attacks . | . . . Impact . | . . . Slashing . | . . . Piercing . | . . . Sneak Attacks . | . . . Combat Hostiles . | . . . Follow-up Attacks . | . . . Damage Inflicted 556 | . 371 185 Guns 556 | . 371 185 Cannons . | . . . Explosions . | . . . Melee . | . . . Ramming . | . . . Kinetic 342 | . 157 185 Thermal . | . . . Explosive . | . . . Electromagnetic 214 | . 214 . Impact . | . . . Slashing . | . . . Piercing . | . . . Highest Corruption . | . . . Average Corruption . | . . . Corruption Purged . | . . . Overload Shots . | . . . Overflow Damage . | . . . Projectiles . | . . . Explosions . | . . . Melee . | . . . Knockbacks . | . . . Impact . | . . . Kinetic . | . . . Secondary . | . . . Self-Inflicted Damage . | . . . Shots . | . . . Rammed . | . . . Targets Rammed . | . . . Kicked . | . . . Crushed . | . . . Highest Temperature 283 | . 283 . Average Temperature 138 | . 138 . Received Heat Transfer 282 | . 252 30 Siege Activations . | . . . Robots Corrupted . | . . . Combat Hostiles . | . . . Parts Fried 1 | . 1 . Impact Corruptions . | . . . Robots Melted . | . . . Combat Hostiles . | . . . Parts Melted . | . . . Heat Transferred . | . . . Parts Sabotaged . | . . . Parts Stolen . | . . . Parts Stripped . | . . . Power Chain Reactions . | . . . Missiles Intercepted . | . . . Alert | -11 -10 -9 ------- Run | Scr Mat Mat Peak Influence 82 | . 73 82 Average Influence 23 | . 19 41 Maximum Alert Level . | . . . Low Security (%) 100 | . . . Level 1 . | . . . Level 2 . | . . . Level 3 . | . . . Level 4 . | . . . Level 5 . | . . . High Security . | . . . Max Security . | . . . Squads Dispatched 2 | . . 2 Investigation . | . . . Extermination . | . . . Reinforcement 2 | . . 2 Assault . | . . . Garrison . | . . . Intercept . | . . . Construction Impeded . | . . . Haulers Reinforced . | . . . Stealth | -11 -10 -9 --------- Run | Scr Mat Mat Distress Signals . | . . . Communications Jammed . | . . . Distress Signals . | . . . Times Spotted 13 | . 8 5 Peak Tracking Total 3 | . 2 3 Tactical Retreats 1 | . 1 . Traps | -11 -10 -9 ------- Run | Scr Mat Mat Traps Triggered . | . . . Indirectly . | . . . Trap Hack Attempts . | . . . Triggered . | . . . Disarmed . | . . . Reprogrammed . | . . . Reused . | . . . Traps Extracted . | . . . Installed . | . . . Triggered . | . . . Machines | -11 -10 -9 ---------- Run | Scr Mat Mat Machines Disabled . | . . . Max in Single Turn . | . . . Machines Sabotaged . | . . . Garrisons Compromised . | . . . Overloaded Fab Kills . | . . . Fab Network Shutdowns . | . . . Hacking | -11 -10 -9 --------- Run | Scr Mat Mat Machines Accessed 2 | . 2 . Terminals 2 | . 2 . Fabricators . | . . . Repair Stations . | . . . Recycling Units . | . . . Scanalyzers . | . . . Garrison Access . | . . . Total Hacks 5 | . 5 . Successful 2 | . 2 . Failed 3 | . 3 . Catastrophic . | . . . Database Lockouts . | . . . Manual 5 | . 5 . Terminals 5 | . 5 . Fabricators . | . . . Repair Stations . | . . . Recycling Units . | . . . Scanalyzers . | . . . Garrison Access . | . . . Terminal Hacks . | . . . Fabricator Hacks . | . . . Repair Station Hacks . | . . . Recycling Unit Hacks . | . . . Scanalyzer . | . . . Garrison Access Hacks . | . . . Unauthorized Hacks 7 | . 7 . Terminals 2 | . 2 . Botnet 2 | . 2 . Fabricators . | . . . Repair Stations . | . . . Recycling Units . | . . . Scanalyzers . | . . . Garrison Access . | . . . Data Cores Recovered . | . . . Used . | . . . Hacking Detections 2 | . 2 . Full Trace Events . | . . . Feedback Events . | . . . Feedback Blocked . | . . . Robot Schematics Acquired . | . . . Robots Built . | . . . Matter . | . . . Time . | . . . Total Robot Build Rating . | . . . Part Schematics Acquired . | . . . Parts Built . | . . . Matter . | . . . Time . | . . . Total Part Build Rating . | . . . Parts Repaired . | . . . Time . | . . . Parts Recycled . | . . . Recycled Matter . | . . . Retrieved Matter . | . . . Retrieved Components . | . . . Parts Scanalyzed . | . . . Part Schematics Acquired . | . . . Parts Damaged . | . . . Bothacking | -11 -10 -9 ------------ Run | Scr Mat Mat Used RIF Installer . | . . . Robots Hacked . | . . . Non-combat . | . . . Combat . | . . . Robot Hacks Applied . | . . . Relay Couplers Released . | . . . Robots Rewired . | . . . Allies Hacked . | . . . Hacks Repelled . | . . . Allies | -11 -10 -9 -------- Run | Scr Mat Mat Total Allies . | . . . Largest Group . | . . . Highest-Rated Group . | . . . Highest-Rated Ally . | . . . Total Orders . | . . . Ally Attacks . | . . . Total Damage . | . . . Kills . | . . . Allies Corrupted . | . . . Allies Melted . | . . . Intel | -11 -10 -9 ------- Run | Scr Mat Mat Robot Analysis Total . | . . . Derelict Logs Recovered . | . . . Drone Launches . | . . . Drone Recoveries . | . . . Exploration | -11 -10 -9 ------------- Run | Scr Mat Mat Turns Passed 461 | 32 318 111 Spaces Moved 305 | 53 196 56 Core 71 | 53 18 . Treads . | . . . Legs 234 | . 178 56 Wheels . | . . . Hover . | . . . Flight . | . . . Fastest Speed 50 | 50 50 120 Average Speed 103 | 50 113 120 Slowest Speed 120 | 50 120 120 Overloaded Moves . | . . . Propulsion Burnouts . | . . . Robots Hopped . | . . . Cave-ins Triggered . | . . . Exploration Rate (%) 12 | 3 29 6 Regions Visited 2 Branch Regions . Pre-discovered Areas . | . . . Known Exits Taken . | . . . Unknown Exits Taken 2 | 1 1 . Scrap Searched . | . . . Spaces Dug . | . . . Terrain Destroyed . | . . . Melee . | . . . Projectile . | . . . AOE . | . . . Actions | -11 -10 -9 --------- Run | Scr Mat Mat Total 375 | 58 238 79 Wait 1 | . 1 . Move 303 | 52 195 56 Hop . | . . . Pick Up 12 | 5 7 . Fast Attach 2 | . 1 1 Attach 10 | 1 7 2 Detach . | . . . Swap 1 | . 1 . Drop . | . . . Fire 46 | . 26 20 Melee . | . . . Ram . | . . . Kick . | . . . Crush . | . . . Escape Stasis . | . . . Rewire . | . . . Trap . | . . . Miscellaneous . | . . . Route ------- -11/Scrapyard -10/Materials (discovered 2 exits: [*Mat] / [*Min]) -9/Materials History --------- Turn | Location | Event 7 | -11/Scrapyard | Discovered new exit (range 15) 33 | -11/Scrapyard | Entered Materials 159 | -10/Materials | Discovered new exit (range 4) 170 | -10/Materials | Discovered new exit (range 15) 307 | -10/Materials | Build established: Mutant 351 | -10/Materials | Entered another Materials area 351 | -9/Materials | Evolved 2 slots: Utility x2 371 | -9/Materials | Lost 4 parts (1p2u1w) 462 | -9/Materials | Self-destructed Last Messages --------------- LOCATION=UNKNOWN GOAL=ESCAPE 00354_ O-16 Technician: "IFF HANDSHAKE FAILED. SECURING TERMINAL." 00354_ O-16 Technician uses terminal to summon reinforcements. 00354_ ALERT: Hostiles spotted, dispatching reinforcements to Terminal M003. 00354_ O-16 Technician locks terminal. 00356_ Destroyed Datajack. 00363_ Door malfunctions. 00369_ U-05 Engineer repairs door. 00388_ Acquired Imp. Signal Interpreter. 00430_ Door malfunctions. 00434_ G-34 Mercenary destroyed. 00446_ U-05 Engineer repairs door. 00448_ G-34 Mercenary suffers critical hit. 00448_ G-34 Mercenary destroyed. 00449_ U-05 Engineer destroyed. 00457_ Lgt. Nuclear Core destroyed. 00460_ ALERT: Hostiles spotted, dispatching reinforcements to Terminal M007. Map ----- +----------------------------------------------------+ | | | ????????????????????????????????????????? | | ????????????????????????????????????????? | | ????????????????????????????????????????? | | ??????????########??????????????????????? | | ??????????# #??????????????????????? | | ??????????# """ #??????????????????????? | | ??????????# "T" #??????????????????????? | | ??????????# #??????????????????????? | | ??????????# #??????????????????????? | | ???????????? ???????????????????????? | | ??????????####+####?????????????????????? | | ??????????# #?????????????????????? | | ??????????# #?????????????????????? | | ??????????# #?????????????????????? | | ???????######## #?????????????????????? | | ???????# # #?????????????????????? | | ???????# # #?????????????????????? | | ???????# """ + #?????????????????????? | | ???????# """ # #?????????????????????? | | ???????# """ # ########??????????????? | | ???????# ?# # #??????????????? | | ???????######## |# #??????????????? | | ???????# # *%# """ #??????????????? | | ???????# # !=# """ #??????????????? | | ???????# + @ + """ #??????????????? | | ???????# # # #??????????????? | | ???????# # ########??????????????? | | ???????# # #?????????????????????? | | ???????######## #?????????????????????? | | ??????????????# %=#?????????????????????? | | ??????????????# =%#?????????????????????? | | ??????????????# *!+?????????????????????? | | ??????????????# # ????????????????????? | | ??????????????# # ???????????????????? | | ??????????????# #?##??????????????????? | | ??????????????# #?????????????????????? | | ??????????????# #?????????????????????? | | ??????????????# #?????????????????????? | | ??????????????# #?????????????????????? | | ??????????????# #?????????????????????? | | ??????????????# Y#?????????????????????? | | ??????????????# #?????????????????????? | | ??????????????? ?????????????????????? | | ??????????????? ?????????????????????? | | ??????????????? ?????????????????????? | | ??????????????? ??????????????????????? | | ????????????????????????????????????????? | | ????????????????????????????????????????? | | ????????????????????????????????????????? | +----------------------------------------------------+ Best States ------------- Heat Dissipation 28 Energy Generation 14 Energy Capacity 160 Matter Stores 300 Matter Capacity 300 Sight Range 18 Terrain Scan Density 10 ECM Strength 1 Armor Coverage 150 Evasion (%) 50 Item Schematics ----------------- None Robot Schematics ------------------ None Fabricated ------------ Nothing Alien Tech Used ----------------- None Achievements -------------- None Challenges ------------ None Game ------ Seed EnhancedSuspensionDevice Manual? 0 Play Time 00:06:12 Cumulative 94.5 hours Start 2019.11.03 @ 03:56:31 End 2019.11.03 @ 04:01:48 Sessions 1 Manual Loads 0 Difficulty Rogue Special Mode None Game No. 153 Rogue 153 Adventurer 0 Explorer 0 Win Type - Total 0 Types 0/0/0/0/0/0/0 Lore% 31 Gallery% 45 Achievement% 33 Wizard Run 0 Options --------- ASCII 0 Keyboard 0 Movement Mouse Keybinds 0 Fullscreen 1 Font 18/SmallcapsGlow Map View 76x50 Tactical HUD 1 Map Filters NONE Filters NONE Steam 1 RUN: 5602d7c3-f2d9-449a-93ad-747aba09635a